Cogmind - Beta 13 @@@ ROGUE MODE // 2024.04.11 @ 22:29:44 Player: pro100_Player Result: Destroyed by D-53 Grenadier with Mini Grenade Launcher Performance ------------- Evolutions (0) 0 Regions Visited (4) 800 Robots Destroyed (32) 160 Value Destroyed (423) 423 Prototype IDs (1) 20 Alien Tech Used (0) 0 Bonus (158) 158 TOTAL SCORE: 1561 Bonus ------- Follower Combat Kills 158 Cogmind --------- Core Integrity 0/250 Matter 300/300 Energy 99/100 System Corruption 0% Temperature Cool (0) Movement Core (50) Location -9/Mines Parts ------- > --- POWER (1) -------- (None) > --- PROPULSION (2) --- (None) > --- UTILITY (2) ------ (None) > --- WEAPON (2) ------- Ripper > --- INVENTORY (5) ---- Improved Heat Sink Medium Matter Pod (100) Makeshift Sensor Array Gauss Rifle Remote Datajack Peak State ------------ > --- POWER ------------ Light Ion Engine > --- PROPULSION ------- Wheel Wheel > --- UTILITY ---------- Medium Storage Unit Experimental Sensor Array > --- WEAPON ----------- Medium Laser Ripper > --- INVENTORY -------- Light Nuclear Core Improved Heat Sink Improved Heat Sink Medium Matter Pod Makeshift Sensor Array Transport Network Coupler Makeshift Cloaking Device Gauss Rifle Remote Datajack [Rating: 21] Favorites ----------- Power Light Ion Engine Engine Light Ion Engine Power Core Light Nuclear Core Propulsion Wheel Leg Aluminum Leg Wheel Wheel Utility Small Storage Unit Device Improved Heat Sink Storage Small Storage Unit Weapon Medium Laser Energy Gun Medium Laser Impact Weapon Hammer Slashing Weapon Ripper Build | -11 -10 -10 -10 -9 ------- Run | Yrd Mat Min Exi Min Slots Evolved . | . . . . . Power . | . . . . . Propulsion . | . . . . . Utility . | . . . . . Weapon . | . . . . . Parts Attached 23 | 6 4 6 6 1 Power 6 | 1 1 1 3 . Engine 5 | 1 1 1 2 . Core 1 | . . . 1 . Reactor . | . . . . . Propulsion 5 | 2 . 2 . 1 Treads . | . . . . . Leg 1 | . . . . 1 Wheel 4 | 2 . 2 . . Hover . | . . . . . Flight . | . . . . . Utility 6 | 1 2 1 2 . Device 4 | . 2 1 1 . Storage 2 | 1 . . 1 . Processor . | . . . . . Hackware . | . . . . . Protection . | . . . . . Artifact . | . . . . . Weapon 6 | 2 1 2 1 . Energy Gun 3 | 2 1 . . . Energy Cannon . | . . . . . Ballistic Gun . | . . . . . Ballistic Cannon . | . . . . . Launcher . | . . . . . Special Weapon . | . . . . . Impact Weapon 1 | . . 1 . . Slashing Weapon 2 | . . 1 1 . Piercing Weapon . | . . . . . Special Melee Weapon . | . . . . . Unidentified Prototypes 1 | . . . 1 . Parts Lost 5 | . . . . 5 Power . | . . . . . Propulsion 3 | . . . . 3 Utility 1 | . . . . 1 Weapon 1 | . . . . 1 Highest Loss Streak 5 | . . . . 5 To Critical Strikes . | . . . . . Average Slot Usage (%) 99 | . 93 100 99 97 Engine 14 | . 14 14 14 14 Wheel 27 | . 28 28 28 25 Device 13 | . 8 14 14 12 Storage 14 | . 14 14 14 14 Energy Gun 16 | . 28 18 14 14 Slashing Weapon 11 | . . 9 13 14 Naked Turns . | . . . . . Heaviest Build 21 | 12 13 16 21 19 Greatest Support 20 | 20 20 20 20 20 Greatest Overweight (x) 6 | . . . 1 6 Average Overweight (x) . | . . . . . Largest Inventory Capacity 10 | 8 8 8 10 10 Average Capacity 8 | 7 8 8 9 9 Most Carried 10 | 8 8 8 10 10 Average Carried 8 | 4 7 7 8 8 Final Capacity 10 | 8 8 8 10 5 Final Carried 9 | 8 6 8 9 5 Class Distribution -------------------- 46% | Commander-Mutant 36% | Mutant 16% | Scavenger-Mutant Dominant Class ---------------- Mutant | -10/Materials Mutant | -10/Mines Commander-Mutant | -10/Exiles Commander-Mutant | -9/Mines Resources | -11 -10 -10 -10 -9 ----------- Run | Yrd Mat Min Exi Min Matter Collected 500 | 340 20 80 60 . Remotely . | . . . . . Salvage Created 1312 | 176 286 296 456 98 Parts 72 | 8 20 28 16 . Haulers Intercepted . | . . . . . Recyclers Shooed 4 | . 1 2 . 1 Parts Field Recycled . | . . . . . Retrieved Matter . | . . . . . Parts Self-Destructed . | . . . . . Prevented . | . . . . . Kills | -11 -10 -10 -10 -9 ------- Run | Yrd Mat Min Exi Min Combat Hostiles Destroyed 17 | . 6 10 1 . Melee 5 | . . 4 1 . Guns 12 | . 6 6 . . Classes Destroyed 7 | 3 4 . . . Worker 6 | 2 2 2 . . Builder 1 | . 1 . . . Tunneler 4 | 2 . 2 . . Recycler 3 | 1 . 1 . 1 Watcher 1 | . 1 . . . Swarmer 11 | . 2 9 . . Grunt 6 | . 4 1 1 . Best Kill Streak 8 | 3 8 4 1 1 Combat Bots Only 5 | . 5 3 1 . Max Kills in Single Turn 1 | 1 1 1 1 1 Gunslinging . | . . . . . Exploded . | . . . . . Melee 1 | . . 1 1 . Uniques/NPCs Destroyed . | . . . . . Combat | -11 -10 -10 -10 -9 -------- Run | Yrd Mat Min Exi Min Hostile Shots Fired 66 | . 17 37 . 12 Missed 15 | . 5 9 . 1 Damage Taken 768 | . 133 246 . 389 Core 257 | . 51 47 . 159 Absorbed by Shields . | . . . . . Core Remaining (%) 100 | 100 . . . . Volleys Fired 66 | 12 25 24 2 3 Largest 2 | 2 2 2 1 1 Hottest 90 | 90 90 90 50 50 Shots Fired 122 | 24 50 43 2 3 Gun 122 | 24 50 43 2 3 Cannon . | . . . . . Launcher . | . . . . . Special . | . . . . . Kinetic . | . . . . . Thermal 85 | 12 25 43 2 3 Explosive . | . . . . . Electromagnetic 37 | 12 25 . . . Robot Hit Streak 8 | 8 8 4 . 1 Robot Miss Streak 3 | 1 3 2 . 1 Penetration Max . | . . . . . Secondary Targets . | . . . . . Shots Hit Robots 111 | 18 35 35 18 5 Core Hits 46 | 6 16 15 9 . Critical Kills . | . . . . . Critical Parts Destroyed . | . . . . . Critical Strikes 4 | . 3 1 . . Burn 3 | . 2 1 . . Corrupt 1 | . 1 . . . Melee Attacks 54 | . . 13 35 6 Impact 2 | . . 2 . . Slashing 52 | . . 11 35 6 Piercing . | . . . . . Sneak Attacks 5 | . . 2 1 2 Combat Hostiles 1 | . . . 1 . Follow-up Attacks . | . . . . . Damage Inflicted 3049 | 233 479 680 1457 200 Guns 982 | 233 445 278 . 26 Cannons . | . . . . . Explosions 34 | . 34 . . . Melee 2033 | . . 402 1457 174 Ramming . | . . . . . Kinetic . | . . . . . Thermal 652 | 125 223 278 . 26 Explosive . | . . . . . Electromagnetic 364 | 108 256 . . . Impact 82 | . . 82 . . Slashing 1951 | . . 320 1457 174 Piercing . | . . . . . Highest Corruption . | . . . . . Average Corruption . | . . . . . Corruption Purged . | . . . . . Corruption Blocked . | . . . . . Overload Shots . | . . . . . Overflow Damage 396 | . . 42 270 84 Projectiles . | . . . . . Explosions . | . . . . . Melee 396 | . . 42 270 84 Knockbacks . | . . . . . Impact . | . . . . . Kinetic . | . . . . . Secondary . | . . . . . Self-Inflicted Damage . | . . . . . Shots . | . . . . . Rammed . | . . . . . Targets Rammed . | . . . . . Kicked . | . . . . . Crushed . | . . . . . Highest Temperature 120 | 120 75 . 10 16 Average Temperature 36 | 48 25 . 7 10 Received Heat Transfer 99 | . 60 27 . 12 Siege Activations . | . . . . . Robots Corrupted . | . . . . . Combat Hostiles . | . . . . . Parts Fried 2 | . . 2 . . Impact Corruptions 2 | . . 2 . . Robots Melted . | . . . . . Combat Hostiles . | . . . . . Parts Melted 4 | 1 1 2 . . Heat Transferred 2003 | 370 753 806 . 74 Parts Sabotaged . | . . . . . Parts Stolen . | . . . . . Parts Stripped . | . . . . . Power Chain Reactions 1 | . 1 . . . Alert | -11 -10 -10 -10 -9 ------- Run | Yrd Mat Min Exi Min Peak Influence 249 | 25 216 249 . 208 Initial 84 | . 16 84 . . Average 147 | 10 115 183 . 98 Maximum Alert Level 1 | . 1 1 . 1 Low Security (%) 61 | 100 85 45 . 98 Level 1 38 | . 14 54 . 1 Level 2 . | . . . . . Level 3 . | . . . . . Level 4 . | . . . . . Level 5 . | . . . . . High Security . | . . . . . Max Security . | . . . . . Squads Dispatched 1 | . 1 . . . Investigation . | . . . . . Extermination . | . . . . . Reinforcement 1 | . 1 . . . Assault . | . . . . . Garrison . | . . . . . Intercept . | . . . . . Searches Triggered . | . . . . . Construction Impeded . | . . . . . Haulers Reinforced . | . . . . . Active Scanning Responses . | . . . . . Cargo Convoy Interrupts . | . . . . . Stealth | -11 -10 -10 -10 -9 --------- Run | Yrd Mat Min Exi Min Distress Signals 2 | . 2 . . . Communications Jammed . | . . . . . Distress Signals . | . . . . . Times Spotted 26 | . 8 9 . 9 Peak Tracking Total 4 | . 4 3 . 4 Tactical Retreats 1 | . 1 . . . Traps | -11 -10 -10 -10 -9 ------- Run | Yrd Mat Min Exi Min Traps Triggered . | . . . . . Indirectly . | . . . . . Trap Hack Attempts . | . . . . . Triggered . | . . . . . Disarmed . | . . . . . Reprogrammed . | . . . . . Reused . | . . . . . Traps Extracted . | . . . . . Installed . | . . . . . Triggered . | . . . . . Most Traps Carried 2 | . . 2 2 . Machines | -11 -10 -10 -10 -9 ---------- Run | Yrd Mat Min Exi Min Machines Disabled 1 | . . 1 . . Max in Single Turn . | . . . . . Machines Repaired . | . . . . . Machines Dismantled . | . . . . . Machines Sabotaged . | . . . . . Overloaded Fab Kills . | . . . . . Hacking | -11 -10 -10 -10 -9 --------- Run | Yrd Mat Min Exi Min Machines Accessed 3 | . . 1 2 . Terminals 1 | . . 1 . . Fabricators . | . . . . . Repair Stations . | . . . . . Recycling Units . | . . . . . Scanalyzers . | . . . . . Garrison Access . | . . . . . Total Hacks 11 | . . 2 9 . Successful 9 | . . . 9 . Failed 2 | . . 2 . . Catastrophic 2 | . . 2 . . Database Lockouts . | . . . . . Manual 11 | . . 2 9 . Terminals 2 | . . 2 . . Fabricators . | . . . . . Repair Stations . | . . . . . Recycling Units . | . . . . . Scanalyzers . | . . . . . Garrison Access . | . . . . . Terminal Hacks 9 | . . . 9 . Record 9 | . . . 9 . Fabricator Hacks . | . . . . . Repair Station Hacks . | . . . . . Recycling Unit Hacks . | . . . . . Scanalyzer . | . . . . . Garrison Access Hacks . | . . . . . Unauthorized Hacks . | . . . . . Terminals . | . . . . . Fabricators . | . . . . . Repair Stations . | . . . . . Recycling Units . | . . . . . Scanalyzers . | . . . . . Garrison Access . | . . . . . Data Cores Recovered . | . . . . . Used . | . . . . . Hacking Detections 1 | . . 1 . . Full Trace Events 1 | . . 1 . . Feedback Events . | . . . . . Feedback Blocked . | . . . . . Robot Schematics Acquired . | . . . . . Robots Built . | . . . . . Authchips . | . . . . . Time . | . . . . . Total Robot Build Rating . | . . . . . Part Schematics Acquired . | . . . . . Parts Built . | . . . . . Authchips . | . . . . . Time . | . . . . . Total Part Build Rating . | . . . . . Parts Repaired . | . . . . . Time . | . . . . . Parts Recycled . | . . . . . Recycled Matter . | . . . . . Retrieved Matter . | . . . . . Retrieved Components . | . . . . . Parts Scanalyzed . | . . . . . Part Schematics Acquired . | . . . . . Parts Damaged . | . . . . . Bothacking | -11 -10 -10 -10 -9 ------------ Run | Yrd Mat Min Exi Min Used RIF Installer . | . . . . . Robots Hacked . | . . . . . Non-combat . | . . . . . Combat . | . . . . . Robot Hacks Applied . | . . . . . Relay Couplers Released . | . . . . . Fabnet Peak Effective % . | . . . . . Robots Rewired 3 | . . . 3 . Allies Hacked . | . . . . . Hacks Repelled . | . . . . . Allies | -11 -10 -10 -10 -9 -------- Run | Yrd Mat Min Exi Min Total Allies 9 | . . 6 3 . Largest Group 6 | . . 6 6 6 Highest-Rated Group 116 | . . 116 85 64 Highest-Rated Ally 31 | . . 31 31 16 Total Orders . | . . . . . Ally Attacks 40 | . . 11 . 29 Total Damage 431 | . . 120 . 311 Kills 8 | . . 1 . 7 Allies Corrupted . | . . . . . Allies Melted . | . . . . . Intel | -11 -10 -10 -10 -9 ------- Run | Yrd Mat Min Exi Min Robot Analysis Total . | . . . . . Derelict Logs Recovered 2 | . . 2 . . Drone Launches . | . . . . . Drone Recoveries . | . . . . . Exploration | -11 -10 -10 -10 -9 ------------- Run | Yrd Mat Min Exi Min Turns Passed 2462 | 134 170 795 1261 102 Spaces Moved 2313 | 98 103 742 1314 56 Core 3 | 1 . . . 2 Treads . | . . . . . Legs 1 | . . . . 1 Wheels 2309 | 97 103 742 1314 53 Hover . | . . . . . Flight . | . . . . . Fastest Speed 50 | 50 80 80 80 50 Average Speed 80 | 79 80 80 80 86 Slowest Speed 350 | 80 80 80 95 350 Overloaded Moves . | . . . . . Propulsion Burnouts . | . . . . . Robots Hopped . | . . . . . Cave-ins Triggered . | . . . . . Exploration Rate (%) 47 | 5 29 97 96 12 Regions Visited 4 Branch Regions 3 Pre-discovered Areas 3 | . . 2 1 . Known Exits Taken . | . . . . . Unknown Exits Taken 4 | 1 1 1 1 . Scrap Searched 2 | . . 2 . . Spaces Dug 7 | . . . 4 3 Terrain Destroyed 9 | . 2 . 4 3 Melee 7 | . . . 4 3 Projectile . | . . . . . AOE 2 | . 2 . . . Terrain Rammed . | . . . . . Walls Destroyed . | . . . . . Machines Disabled . | . . . . . Actions | -11 -10 -10 -10 -9 --------- Run | Yrd Mat Min Exi Min Total 2722 | 129 141 881 1472 99 Wait 180 | . 3 87 60 30 Move 2309 | 97 102 741 1313 56 Hop . | . . . . . Pick Up 29 | 14 2 4 8 1 Fast Attach 3 | . 1 2 . . Attach 8 | 6 . . 1 1 Detach 1 | . . . 1 . Swap 12 | . 3 4 5 . Drop 22 | . 5 6 9 2 Fire 66 | 12 25 24 2 3 Melee 54 | . . 13 35 6 Ram . | . . . . . Kick . | . . . . . Crush . | . . . . . Escape Stasis . | . . . . . Rewire 38 | . . . 38 . Trap . | . . . . . Miscellaneous . | . . . . . Route ------- -11/Scrapyard -10/Materials -10/Mines (discovered 3 exits: [*Mat x2] / *Exi) -10/Exiles (discovered 2 exits: [*Min x2]) -9/Mines (discovered 1 exit: [*Mat]) History --------- Turn | Location | Event 9 | -11/Scrapyard | Discovered new exit (range 16) 135 | -11/Scrapyard | Entered Materials 191 | -10/Materials | Discovered new exit (range 11) 305 | -10/Materials | Entered Mines 326 | -10/Mines | Build established: Mutant 395 | -10/Mines | Found a damaged Exp. Sensor Array with a note attached 397 | -10/Mines | Found Prototype Device 460 | -10/Mines | Learned location of Storage (-8) 577 | -10/Mines | A weapon hastily lodged in a ceiling crevice suddenly fell to the ground 647 | -10/Mines | Learned location of Zion (-6) 655 | -10/Mines | Discovered new exit (range 8) 661 | -10/Mines | Assisted by bots powering up and referring to "LRC-V3" 724 | -10/Mines | Discovered new exit (range 11) 870 | -10/Mines | Found a hidden stash of uninstalled traps 941 | -10/Mines | Escorted by a lone wolf Derelict 1031 | -10/Mines | Deemed a non-threat by the Exiles lab entrance 1031 | -10/Mines | Discovered new exit (range 5) 1100 | -10/Mines | Entered Exiles 1100 | -10/Exiles | Found Exiles lab destroyed 1100 | -10/Exiles | Accompanied by 6 allies 1126 | -10/Exiles | Discovered new exit (range 14) 1130 | -10/Exiles | Led the pair of lost Derelicts to a safe place 1199 | -10/Exiles | Build established: Scavenger-Mutant 1370 | -10/Exiles | Identified Exp. Sensor Array 1604 | -10/Exiles | Build established: Commander-Mutant 1660 | -10/Exiles | Discovered new exit (range 12) 2361 | -10/Exiles | Entered Mines 2361 | -9/Mines | Accompanied by 6 allies 2449 | -9/Mines | Assembled infested the area 2456 | -9/Mines | Core integrity fell below 50% 2461 | -9/Mines | Discovered new exit (range 12) 2463 | -9/Mines | Core integrity fell below 20% 2463 | -9/Mines | Destroyed by D-53 Grenadier with Mini Grenade Launcher Last Messages --------------- 02453_ C-30 ARC bursts open, deploying its payload. 02453_ D-53 Grenadier unfolds itself. 02453_ G-34 Mercenary destroyed. 02455_ Wheel destroyed. 02455_ Trooper 1b destroyed. 02455_ Mercenary 1c destroyed. 02455_ Wheel destroyed. 02455_ Mercenary 1d destroyed. 02458_ Mercenary 1a destroyed. 02458_ Trooper 1a destroyed. 02458_ Acquired Aluminum Leg. 02459_ Exp. Sensor Array destroyed. 02460_ The unstable cave ceiling collapses. 02461_ Aluminum Leg destroyed. 02461_ EXIT=FOUND 02462_ The unstable cave ceiling collapses. 02462_ Med. Laser destroyed. 02462_ Dropped Med. Storage Unit. 02463_ Dropped Lgt. Ion Engine. Map ----- +----------------------------------------------------+ | ?????????????????????????????????????????????????? | | ?????????????????????????????????????????????????? | | ?????????????????????????????????????????????????? | | ?????????????????????????????????????????????????? | | ?????????????????????????????????????????????????? | | ?????????????????????????????????????????????????? | | ?????????????????????????????????????????????????? | | ?????????????????????????????????????????????????? | | ?????????????????????????????????????????????????? | | ?????????????????????????????????????????????????? | | ?????????????????????????????????????????????????? | | ????????????????????###??????????????????????????? | | ???????????????????? #??????????????????????????? | | ????????????????????# #??????????????????????????? | | ????????????????????# #??????????????????????????? | | ??????????###??###??# ##?????????????????????????? | | ?????????##"####"#### ##????????????????????????? | | ?????????# ###??????????????????????? | | ???????### #####"### ##?????????????????????? | | ???????# #???###?# % #?????????????????????? | | ???????# ###???????# ##????????????????????? | | ???????# #?????????# #????????????????????? | | ??????##*#####????## ##???????????????????? | | ??????#==[ #???## !* #???????????????????? | | ??????#%*= #???# *!! #????????????????????? | | ??????# % #??# !@ #????????????????????? | | ??????# #??# #????????????????????? | | ??????# #??# [* ???????????????????? | | ??????########??# =% ?????????????????? | | ????????????????# ## dd """ ???????????????? | | ????????????????## ? """ < ?????????????? | | ?????????????????## ? """ ???????????? | | ??????????????????# ?##### % ??? ##??????????? | | ?????????????????? ?????? ## ?????????????????? | | ?????????????????# ?????? #?#?????????????????? | | ?????????????????# ??????? #???????????????????? | | ?????????????????# ??????? #???????????????????? | | ?????????????????#? ???????? ???????????????????? | | ???????????????????????????? ???????????????????? | | ???????????????????????????? ???????????????????? | | ?????????????????????????????????????????????????? | | ?????????????????????????????????????????????????? | | ?????????????????????????????????????????????????? | | ?????????????????????????????????????????????????? | | ?????????????????????????????????????????????????? | | ?????????????????????????????????????????????????? | | ?????????????????????????????????????????????????? | | ?????????????????????????????????????????????????? | | ?????????????????????????????????????????????????? | | ?????????????????????????????????????????????????? | +----------------------------------------------------+ Best States ------------- Heat Dissipation 39 Energy Generation 10 Energy Capacity 250 Matter Stores 300 Matter Capacity 300 Sight Range 16 Robot Scan Range 20 Terrain Scan Density 10 Evasion (%) 44 Item Schematics ----------------- None Robot Schematics ------------------ None Fabricated ------------ Nothing Alien Tech Used ----------------- None Achievements -------------- None Challenges ------------ None Game ------ Seed NullFactoryActivator Manual? 0 Play Time 00:32:34 Cumulative 15.1 hours Start 2024.04.11 @ 20:33:39 End 2024.04.11 @ 22:29:44 Sessions 3 Manual Loads 0 Difficulty Rogue Special Mode None Game No. 14 Rogue 14 Adventurer 0 Explorer 0 Win Type - Total 0 Types 0/0/0/0/0/0/0/0/0 Lore% 15 Gallery% 18 Achievement% 17 Wizard Run 0 Options --------- Layout 1 ASCII 0 Keyboard 0 Movement Numpad Keybinds 0 Fullscreen 1 Font 24/Terminus Map View 50x35 Zoom Use 0% Tactical HUD 1 Map Filters NONE Filters NONE Steam 0 RUN: 2061e6a6-44a6-4418-93b9-328bca53acdd